bitfinex/quotes_SOLUSD_20251226
["timestamp","ask_amount","ask_price","bid_price","bid_amount"]
[1766763710370,11.15767296,121.45,121.41,8.93650938]
[1766763711379,11.15767296,121.45,121.41,15.47351825]
[1766763711793,11.15767296,121.45,121.41,8.93650938]
[1766763711981,0.72,121.43,121.39,8.23764445]
[1766763712183,0.72,121.43,121.39,8.93764445]
[1766763713195,0.72,121.43,121.4,0.7]
[1766763713390,0.72,121.43,121.38,8.93834574]
[1766763713591,0.72,121.43,121.38,15.47535461]
[1766763713985,0.72,121.43,121.39,0.7]
[1766763714502,3.16126024,121.44,121.39,0.7]
[1766763714994,0.72,121.44,121.4,0.7]
[1766763715879,18.67178693,121.45,121.37,8.23908889]
[1766763716082,3.16126024,121.42,121.38,0.7]
[1766763716299,0.72,121.42,121.38,0.7]
[1766763716796,0.72,121.41,121.38,0.7]
[1766763718198,0.72,121.41,121.37,8.93868136]
[1766763718398,0.72,121.41,121.37,0.7]
[1766763718594,0.72,121.41,121.38,0.7]
[1766763719095,104.9,121.44,121.41,0.7]
[1766763719288,2.44126024,121.48,121.42,2.51126024]
[1766763719497,0.72,121.47,121.43,0.07]
[1766763719879,10.43767296,121.45,121.43,2.44126024]
[1766763720089,10.43767296,121.45,121.43,6.53436499]
[1766763720895,15.04,121.48,121.45,0.07]
[1766763721099,104.9,121.49,121.46,6.53436499]
[1766763721100,104.18,121.49,121.46,6.53436499]
[1766763721290,104.9,121.49,121.45,6.53436499]
[1766763721686,11.15767296,121.48,121.44,6.53436499]
[1766763721890,0.72,121.47,121.4,0.82372322]
[1766763722201,0.72,121.45,121.4,6.53436499]
[1766763722982,7.25436499,121.45,121.39,14.77223159]
[1766763723190,0.72,121.45,121.4,6.53436499]
[1766763723802,11.15767296,121.43,121.38,6.53436499]
[1766763724594,0.72,121.42,121.38,6.53436499]
[1766763724799,0.72,121.42,121.37,14.77322574]
[1766763725783,0.72,121.42,121.36,23.27980059]
[1766763725994,0.72,121.41,121.36,29.81416558]
[1766763727809,0.72,121.41,121.37,6.53436499]
[1766763729210,0.72,121.41,121.38,6.53436499]
[1766763730208,0.72,121.41,121.37,8.23894226]
[1766763730209,15.76,121.44,121.39,6.53436499]
[1766763730387,15.04,121.44,121.39,6.53436499]
[1766763730588,0.72,121.43,121.39,6.53436499]
[1766763730792,0.72,121.43,121.39,14.77221605]
[1766763732000,0.72,121.43,121.37,28.83743923]
[1766763732201,0.72,121.43,121.39,6.53436499]
[1766763732908,0.72,121.43,121.37,8.23926835]
[1766763732909,0.72,121.42,121.37,8.23926835]
[1766763733117,0.72,121.42,121.37,14.77363334]
[1766763734420,0.7,121.41,121.36,29.81407883]
[1766763735213,23.27466049,121.44,121.37,8.23923198]
[1766763735214,0.7,121.43,121.37,8.23923198]
[1766763735423,0.7,121.41,121.37,14.77359697]
[1766763737713,0.7,121.41,121.37,8.23923198]
[1766763738017,0.7,121.41,121.35,35.64089883]
[1766763738018,17.67203795,121.41,121.35,21.57436499]
[1766763738198,0.7,121.4,121.35,21.57436499]
[1766763738396,0.7,121.4,121.35,23.28045763]
[1766763738592,0.7,121.4,121.35,29.81482262]
[1766763739318,0.7,121.4,121.35,8.24045763]
[1766763739498,0.7,121.4,121.35,14.77482262]
[1766763740014,0.7,121.4,121.35,10.68288864]
[1766763740216,0.7,121.4,121.35,8.24045763]
[1766763740718,0.7,121.4,121.35,10.68288864]
[1766763741709,0.7,121.4,121.36,2.44243101]
[1766763742014,0.7,121.4,121.36,5.81434985]
[1766763742414,0.7,121.4,121.35,28.84202334]
[1766763742605,0.7,121.4,121.35,14.05480748]
[1766763746019,16.25202281,121.41,121.35,14.05480748]
[1766763746217,10.43767296,121.41,121.35,14.05480748]
[1766763746418,11.13767296,121.41,121.35,14.05480748]
[1766763746924,11.13767296,121.41,121.36,5.81434985]
[1766763747227,5.81434985,121.45,121.39,5.81434985]
[1766763747718,11.13767296,121.44,121.39,5.81434985]
[1766763747919,0.7,121.44,121.39,5.81434985]
[1766763748126,0.7,121.44,121.4,5.81434985]
[1766763749523,0.7,121.44,121.41,8.23655382]
[1766763749728,26.17767296,121.46,121.41,14.05090367]
[1766763749919,26.17767296,121.46,121.42,5.81434985]
[1766763750712,25.47767296,121.46,121.42,5.81434985]
[1766763750999,0.7,121.45,121.42,5.81434985]
[1766763753210,0.7,121.45,121.41,8.23655382]
[1766763753211,0.7,121.45,121.41,14.05090367]
[1766763754623,0.7,121.45,121.42,14.04983337]
[1766763755014,0.7,121.45,121.42,8.23548352]
[1766763756825,0.7,121.45,121.41,14.05081461]
[1766763759223,0.7,121.45,121.4,35.63218384]
[1766763759224,0.7,121.45,121.4,8.23701495]
[1766763759534,0.7,121.45,121.4,14.0513648]
[1766763759828,0.7,121.45,121.4,8.23701495]
[1766763760416,0.7,121.45,121.36,20.59911524]
[1766763760417,5.81434985,121.45,121.36,20.59911524]
[1766763760620,0.7,121.4,121.35,8.24015911]
[1766763760816,0.7,121.4,121.35,14.05450896]
[1766763761009,0.7,121.4,121.35,8.24015911]
[1766763761210,0.7,121.4,121.36,14.05426172]
[1766763761946,0.7,121.4,121.36,10.6820355]
[1766763762113,0.7,121.4,121.35,10.68253601]
[1766763763817,0.7,121.4,121.34,8.24130542]
[1766763764012,27.91979659,121.41,121.39,2.44212363]
[1766763764013,10.43767296,121.41,121.39,2.44212363]
[1766763764218,10.43767296,121.41,121.38,2.44212363]
[1766763764431,11.10767296,121.41,121.37,2.44212363]
[1766763764910,11.10767296,121.41,121.35,2.44212363]
[1766763764911,0.67,121.4,121.35,2.44212363]
[1766763766022,0.67,121.4,121.36,2.44212363]
[1766763766226,0.67,121.4,121.35,8.24007504]
[1766763766531,0.67,121.4,121.35,10.68219867]
[1766763767536,0.67,121.4,121.36,2.44212363]
[1766763767741,0.67,121.4,121.37,2.44212363]
[1766763767921,0.67,121.4,121.37,10.68136887]
[1766763768837,0.67,121.4,121.37,8.23924524]
[1766763769130,0.67,121.4,121.35,20.60156571]
[1766763769337,0.67,121.4,121.36,2.44212363]
[1766763769914,0.67,121.4,121.36,3.81551274]
[1766763770330,0.67,121.4,121.36,12.05483292]
[1766763772114,0.67,121.4,121.35,12.05585553]
[1766763774019,0.67,121.4,121.36,3.81551274]
[1766763775030,0.67,121.4,121.36,12.05513163]
[1766763775231,0.67,121.4,121.37,3.81551274]
[1766763775946,10.43767296,121.41,121.38,3.81551274]
[1766763777825,11.10767296,121.41,121.38,3.81551274]
[1766763778025,11.10767296,121.41,121.37,12.05471099]
[1766763778249,10.43767296,121.41,121.39,3.81551274]
[1766763778742,10.43767296,121.41,121.38,12.05392314]
[1766763779144,11.10767296,121.41,121.38,12.05392314]
[1766763779728,11.10767296,121.41,121.37,3.81551274]
[1766763780247,0.67,121.4,121.36,20.59986816]
[1766763780428,0.67,121.4,121.36,24.4153809]
[1766763780823,0.67,121.4,121.36,20.59986816]
[1766763781020,0.67,121.4,121.36,24.4153809]
[1766763781240,0.67,121.4,121.35,12.05613902]
[1766763782351,0.67,121.4,121.36,3.81551274]
[1766763783724,10.43767296,121.41,121.37,3.81551274]
[1766763783937,11.10767296,121.41,121.37,3.81551274]
[1766763784140,0.67,121.4,121.37,12.05428081]
[1766763784341,0.67,121.4,121.37,8.23923686]
[1766763785736,0.67,121.4,121.36,8.23966208]
[1766763785937,0.67,121.4,121.36,12.05517482]
[1766763786749,0.67,121.4,121.37,3.81551274]
[1766763787453,0.67,121.4,121.36,12.05517482]
[1766763789271,0.67,121.4,121.35,24.41707845]
[1766763790436,0.67,121.4,121.35,32.65770473]
[1766763790742,0.67,121.4,121.36,3.81551274]
[1766763791655,0.67,121.4,121.35,32.65770473]
[1766763791856,0.67,121.4,121.35,8.24062628]
[1766763792154,0.67,121.38,121.34,8.24108771]
[1766763792738,0.67,121.38,121.34,12.05660045]
[1766763792934,0.67,121.38,121.33,8.24180201]
[1766763792935,0.67,121.37,121.33,8.24180201]
[1766763793240,0.67,121.37,121.33,12.05731475]
[1766763794149,0.67,121.37,121.33,8.24180201]
[1766763794338,0.67,121.37,121.33,12.05731475]
[1766763795044,0.67,121.37,121.33,3.81551274]
[1766763795244,0.67,121.37,121.32,8.24266402]
[1766763795457,0.67,121.37,121.32,12.05817676]
[1766763795662,0.67,121.37,121.31,23.28318919]
[1766763795958,0.72,121.35,121.3,12.05931618]
[1766763796161,0.72,121.35,121.31,8.24330144]
[1766763799153,0.72,121.35,121.31,12.05881418]
[1766763799679,0.72,121.35,121.31,8.24330144]
[1766763800274,0.72,121.35,121.3,8.24391295]
[1766763800481,0.72,121.33,121.26,0.2]
[1766763800668,0.72,121.33,121.28,3.81551274]
[1766763800846,0.72,121.33,121.27,43.90121876]
[1766763801041,0.72,121.33,121.29,3.81551274]
[1766763801875,0.72,121.33,121.27,43.90121876]
[1766763802181,0.72,121.33,121.28,3.81551274]
[1766763802972,0.72,121.33,121.29,8.24470277]
[1766763804465,8.23384108,121.45,121.33,0.71]
[1766763804772,3.81551274,121.39,121.33,4.52551274]
[1766763804945,10.43767296,121.38,121.32,4.52551274]
[1766763805144,18.85551274,121.39,121.32,4.52551274]
[1766763805674,10.43767296,121.38,121.33,4.52551274]
[1766763805873,10.43767296,121.38,121.34,3.81551274]
[1766763806062,15.04,121.39,121.34,3.81551274]
[1766763806263,25.47767296,121.39,121.34,3.81551274]
[1766763806456,0.72,121.38,121.34,3.81551274]
[1766763809273,0.72,121.38,121.34,12.05679931]
[1766763809774,26.19767296,121.39,121.36,3.81551274]
[1766763809974,107.99551274,121.42,121.38,3.81551274]
[1766763809975,0.72,121.42,121.38,3.81551274]
[1766763810274,15.04,121.43,121.4,3.81551274]
[1766763810454,0.72,121.44,121.4,4.52551274]
[1766763810654,0.72,121.44,121.4,3.81551274]
[1766763811060,0.72,121.44,121.39,8.94730629]
[1766763811261,0.72,121.44,121.38,3.81551274]
[1766763811262,3.81551274,121.44,121.38,3.81551274]
[1766763811472,0.72,121.43,121.4,3.81551274]
[1766763811655,0.72,121.44,121.41,3.81551274]
[1766763812260,0.72,121.44,121.4,12.76263772]
[1766763812662,15.76,121.46,121.41,8.94593086]
[1766763812864,0.72,121.45,121.41,12.7614436]
[1766763813068,0.72,121.45,121.41,8.94593086]
[1766763813297,0.72,121.45,121.41,8.94652328]
[1766763813854,0.72,121.45,121.41,12.76203602]
[1766763814050,0.72,121.45,121.42,3.81551274]
[1766763814255,0.72,121.51,121.45,0.71]
[1766763814479,6.14883771,121.5,121.45,4.52551274]
[1766763814682,0.1,121.52,121.46,8.23316318]
[1766763814981,0.1,121.52,121.49,4.52551274]
[1766763815186,0.1,121.52,121.49,3.81551274]
[1766763815368,0.82,121.52,121.49,3.81551274]
[1766763815680,0.82,121.52,121.47,0.71]
[1766763815681,0.72,121.51,121.48,3.81551274]
[1766763816079,0.72,121.51,121.47,4.52551274]
[1766763816283,0.72,121.51,121.46,8.23316318]
[1766763816470,0.72,121.51,121.46,12.04867592]
[1766763816670,15.0731857,121.52,121.47,0.71]
[1766763816874,0.72,121.51,121.46,12.04867592]
[1766763817178,0.72,121.51,121.46,12.75867592]
[1766763817483,0.72,121.51,121.44,46.886946]
[1766763817484,0.72,121.51,121.47,12.75785426]
[1766763817784,0.72,121.51,121.48,3.81551274]
[1766763817988,0.72,121.51,121.48,10.60900111]
[1766763818457,0.72,121.51,121.47,19.55134263]
[1766763818660,10.53767296,121.52,121.49,10.60900111]
[1766763818859,10.53767296,121.52,121.49,11.31900111]
[1766763819293,0.1,121.52,121.49,11.31900111]
[1766763819474,0.1,121.52,121.51,10.60900111]
[1766763820573,0.1,121.56,121.52,0.62]
[1766763820781,0.1,121.56,121.54,10.60900111]
[1766763821178,0.1,121.56,121.53,19.45742207]
[1766763821379,0.1,121.56,121.51,9.0522197]
[1766763821687,0.72,121.55,121.51,18.83824328]
[1766763821986,0.72,121.55,121.51,19.45824328]
[1766763824461,0.68,121.53,121.49,8.23110177]
[1766763824667,0.68,121.52,121.47,10.60900111]
[1766763824973,0.68,121.52,121.46,0.62]
[1766763824974,11.28900111,121.51,121.46,8.85308004]
[1766763825168,21.04667407,121.5,121.44,34.48329623]
[1766763825362,0.68,121.48,121.44,15.02]
[1766763825568,0.68,121.48,121.44,23.25443721]
[1766763826090,0.68,121.48,121.44,15.02]
[1766763826299,0.68,121.48,121.43,19.46408868]
[1766763826662,0.68,121.48,121.43,18.84408868]
[1766763827178,10.60900111,121.47,121.42,8.23541564]
[1766763827374,0.68,121.46,121.42,18.84441675]
[1766763827804,0.68,121.46,121.41,10.60900111]
[1766763827964,0.68,121.46,121.42,10.60900111]
[1766763828171,0.68,121.46,121.41,0.62]
[1766763828471,0.68,121.46,121.41,19.46552332]
[1766763829294,0.68,121.46,121.41,18.84552332]
[1766763829473,0.68,121.46,121.41,10.60900111]
[1766763829674,0.68,121.45,121.41,10.60900111]
[1766763829993,0.68,121.45,121.4,19.46602824]
[1766763830186,0.68,121.45,121.41,10.60900111]
[1766763830387,0.68,121.45,121.4,8.85702713]
[1766763830693,0.68,121.45,121.4,18.84602824]
[1766763831795,0.68,121.45,121.4,8.23702713]
[1766763831973,0.68,121.45,121.4,14.7743912]
[1766763832496,0.68,121.45,121.41,7.15736407]
[1766763832694,0.68,121.45,121.42,6.53736407]
[1766763832886,0.68,121.45,121.41,0.62]
[1766763833090,0.68,121.45,121.42,6.53736407]
[1766763833778,0.68,121.45,121.41,7.15736407]
[1766763834392,0.68,121.45,121.41,15.39332736]
[1766763834594,0.68,121.45,121.42,6.53736407]
[1766763834892,0.68,121.45,121.41,8.85596329]
[1766763835085,0.68,121.45,121.41,15.39332736]
[1766763835898,0.68,121.45,121.41,35.98471192]
[1766763837501,0.68,121.45,121.43,8.23519723]
[1766763839272,0.68,121.45,121.42,8.23587547]
[1766763839606,0.68,121.45,121.42,14.77323954]
[1766763840115,0.68,121.45,121.42,10.67581655]
[1766763840420,0.68,121.51,121.45,0.62]
[1766763840584,0.68,121.51,121.46,2.43994108]
[1766763840787,33.88067114,121.52,121.48,3.05994108]
[1766763841009,33.88067114,121.52,121.49,3.05994108]
[1766763841313,33.88067114,121.52,121.49,2.43994108]
[1766763841516,34.56067114,121.52,121.48,2.43994108]
[1766763841680,34.56067114,121.52,121.48,3.05994108]
[1766763841877,34.56067114,121.52,121.48,15.37968444]
[1766763842490,34.56067114,121.52,121.49,14.75934781]
[1766763842687,0.68,121.52,121.49,14.75934781]
[1766763843390,10.43767296,121.54,121.5,6.528379]
[1766763843591,0.68,121.53,121.5,6.528379]
[1766763843786,0.68,121.55,121.51,6.528379]
[1766763844199,0.68,121.54,121.49,14.75934781]
[1766763844602,0.68,121.54,121.5,6.528379]
[1766763844911,0.68,121.54,121.51,6.528379]
[1766763845288,0.68,121.54,121.5,6.528379]
[1766763845609,0.68,121.54,121.51,6.528379]
[1766763847214,0.68,121.54,121.49,29.42879414]
[1766763847514,0.68,121.54,121.5,14.75857584]
[1766763847912,0.68,121.54,121.47,20.58058404]
[1766763848116,0.68,121.54,121.48,6.528379]
[1766763848117,0.68,121.53,121.48,6.528379]
[1766763848614,0.68,121.51,121.46,29.78130871]
[1766763849002,0.68,121.51,121.46,23.25292971]
[1766763849213,0.68,121.51,121.46,29.78130871]
[1766763849719,0.68,121.51,121.47,0.62]
[1766763849919,0.68,121.51,121.46,29.78130871]
[1766763850414,0.68,121.51,121.46,14.76130871]
[1766763850793,0.68,121.5,121.45,14.76214721]
[1766763852114,0.68,121.5,121.45,15.38214721]
[1766763853328,25.45767296,121.52,121.47,7.148379]
[1766763853524,25.45767296,121.52,121.48,15.37978369]
[1766763853525,15.7,121.52,121.48,15.37978369]
[1766763854018,0.66,121.51,121.48,8.23140469]
[1766763854316,15.02,121.52,121.49,0.62]
[1766763855019,15.68,121.52,121.48,14.75978369]
[1766763856319,15.02,121.52,121.48,14.75978369]
[1766763856499,0.66,121.51,121.48,14.75978369]
[1766763857404,0.1,121.56,121.5,6.528379]
[1766763857605,0.1,121.56,121.52,7.198379]
[1766763857806,0.1,121.56,121.53,6.528379]
[1766763858423,0.1,121.56,121.52,0.67]
[1766763858804,0.1,121.56,121.52,15.42696583]
[1766763859626,0.76,121.56,121.52,15.42696583]
[1766763860922,0.1,121.56,121.53,7.198379]
[1766763861503,0.1,121.56,121.53,0.67]
[1766763861729,0.76,121.56,121.52,6.528379]
[1766763862028,0.76,121.56,121.52,7.198379]
[1766763862822,0.76,121.56,121.52,0.67]
[1766763863615,0.76,121.56,121.51,6.528379]
[1766763863811,0.76,121.56,121.51,7.198379]
[1766763864008,0.76,121.56,121.51,15.42811768]
[1766763864228,0.76,121.56,121.52,6.528379]
[1766763864426,0.76,121.56,121.53,6.528379]
[1766763865409,0.76,121.56,121.52,8.89867018]
[1766763865612,0.76,121.56,121.52,7.198379]
[1766763866135,0.76,121.56,121.52,15.42745627]
[1766763866333,0.76,121.56,121.5,0.67]
[1766763866721,0.76,121.56,121.51,6.528379]
[1766763867131,0.76,121.56,121.52,6.528379]
[1766763870139,0.76,121.56,121.51,15.42814202]
[1766763871545,0.76,121.56,121.53,0.67]
[1766763872041,0.76,121.56,121.52,0.67]
[1766763872213,0.76,121.56,121.52,7.198379]
[1766763873218,0.76,121.56,121.51,6.528379]
[1766763873415,0.66,121.54,121.49,0.67]
[1766763873628,0.66,121.53,121.49,8.90085841]
[1766763873832,0.66,121.51,121.47,8.2319765]
[1766763874024,0.66,121.51,121.47,8.9019765]
[1766763874225,0.66,121.49,121.45,0.67]
[1766763874445,0.66,121.48,121.43,23.02511474]
[1766763874737,0.66,121.48,121.44,8.90403589]
[1766763875842,27.89573818,121.49,121.41,38.71869181]
[1766763875843,3.09806522,121.47,121.41,38.71869181]
[1766763876024,0.66,121.46,121.43,8.23504194]
[1766763879039,0.66,121.46,121.4,11.10767296]
[1766763879240,0.66,121.46,121.39,20.59409442]
[1766763879241,0.66,121.44,121.39,7.20603241]
[1766763879553,25.45767296,121.46,121.42,0.67]
[1766763879747,0.66,121.45,121.42,0.67]
[1766763880442,0.66,121.45,121.41,6.53603241]
[1766763880764,0.66,121.45,121.41,7.20603241]
[1766763881256,28.8105157,121.52,121.44,0.67]
[1766763881257,15.02,121.49,121.44,0.67]
[1766763881460,0.66,121.48,121.43,15.44061489]
[1766763881834,0.66,121.48,121.43,8.90458248]
[1766763882058,0.66,121.47,121.43,8.90458248]
[1766763882844,6.53603241,121.48,121.44,0.67]
[1766763884770,25.45767296,121.49,121.44,8.2340772]
[1766763884949,15.02,121.5,121.46,0.71]
[1766763885149,15.71,121.5,121.46,0.71]
[1766763885845,15.71,121.5,121.47,7.24603241]
[1766763886162,0.69,121.52,121.47,7.24603241]
[1766763886355,6.53603241,121.54,121.49,0.71]
[1766763886559,0.69,121.54,121.5,6.53603241]
[1766763886760,15.04,121.55,121.51,0.71]
[1766763886967,25.47767296,121.55,121.51,0.71]
[1766763887269,26.16767296,121.55,121.51,0.71]
[1766763887448,15.04,121.55,121.51,6.53603241]
[1766763887649,15.73,121.55,121.51,6.53603241]
[1766763887968,15.73,121.55,121.51,7.24603241]
[1766763888470,0.69,121.54,121.5,8.23035834]
[1766763888670,15.04,121.55,121.51,8.93930412]
[1766763888844,15.73,121.55,121.51,15.47533653]
[1766763889861,15.73,121.55,121.51,8.93930412]
[1766763891673,15.73,121.55,121.52,6.53603241]
[1766763891674,15.04,121.55,121.52,6.53603241]
[1766763891969,0.1,121.56,121.54,0.71]
[1766763892172,0.1,121.56,121.52,7.24603241]
[1766763892744,0.79,121.56,121.51,28.80374243]
[1766763892950,0.69,121.55,121.51,8.22930412]
[1766763893153,0.69,121.55,121.51,14.76533653]
[1766763893357,0.69,121.55,121.51,15.47533653]
[1766763894061,0.69,121.55,121.51,8.93930412]
[1766763894979,0.69,121.54,121.5,8.2302389]
[1766763895151,0.69,121.54,121.5,8.9402389]
[1766763895977,0.69,121.53,121.5,8.2302389]
[1766763896360,25.62404559,121.55,121.5,8.9402389]
[1766763896665,0.69,121.54,121.5,8.9402389]
[1766763897468,0.69,121.53,121.5,8.2302389]
[1766763897678,0.69,121.53,121.49,8.94090121]
[1766763900047,0.1,121.56,121.49,8.23094333]
[1766763900254,0.1,121.56,121.53,10.60404559]
[1766763900480,0.1,121.56,121.54,10.60404559]
[1766763900654,0.1,121.56,121.51,15.02]
[1766763900850,0.1,121.58,121.55,10.60404559]
[1766763901272,0.1,121.58,121.54,10.60404559]
[1766763901683,0.1,121.58,121.51,15.02]
[1766763901684,0.69,121.57,121.52,10.60404559]
[1766763901984,0.69,121.57,121.52,8.93877681]
[1766763902999,10.60404559,121.57,121.51,18.83361472]
[1766763903282,0.69,121.56,121.51,19.54361472]
[1766763903486,10.60404559,121.54,121.48,0.71]
[1766763903657,25.45767296,121.55,121.48,8.94139978]
[1766763903658,0.69,121.52,121.48,8.94139978]
[1766763904253,0.69,121.51,121.46,8.94293162]
[1766763904583,0.69,121.51,121.46,18.83697721]
[1766763904882,0.69,121.51,121.47,8.9424848]
[1766763905188,15.71,121.52,121.48,8.94176813]
[1766763905882,15.71,121.52,121.47,10.60404559]
[1766763905883,0.69,121.51,121.47,8.23225859]
[1766763906074,0.69,121.5,121.46,8.23294319]
[1766763906279,0.69,121.5,121.45,18.83788667]
[1766763906578,0.69,121.5,121.46,10.60404559]
[1766763907083,0.69,121.5,121.45,40.13248938]
[1766763907962,0.69,121.5,121.45,8.94384108]
[1766763908580,0.69,121.49,121.45,8.23384108]
[1766763908780,0.69,121.48,121.44,8.23430718]
[1766763909462,0.69,121.45,121.41,0.71]
[1766763909861,0.69,121.45,121.41,11.31404559]
[1766763910583,15.02,121.46,121.42,18.8393677]
[1766763910878,15.02,121.46,121.44,0.71]
[1766763911090,10.43767296,121.47,121.44,0.71]
[1766763911466,10.43767296,121.47,121.43,10.60404559]
[1766763911685,0.69,121.46,121.42,40.13905638]
[1766763911985,11.12767296,121.47,121.42,40.13905638]
[1766763912179,11.12767296,121.47,121.42,19.5493677]
[1766763912559,10.43767296,121.47,121.42,19.5493677]
[1766763912759,0.69,121.46,121.41,18.84040379]
[1766763913376,0.69,121.45,121.41,8.2363582]
[1766763913582,11.12767296,121.47,121.42,19.54989793]
[1766763913784,11.12767296,121.47,121.43,10.60404559]
[1766763913975,11.12767296,121.47,121.43,11.31404559]
[1766763914885,10.43767296,121.47,121.43,8.23510606]
[1766763915090,10.43767296,121.47,121.42,8.23575006]
[1766763915091,0.68,121.46,121.42,8.23575006]
[1766763915290,0.68,121.46,121.42,8.89575006]
[1766763915494,0.68,121.46,121.42,19.49979565]
[1766763915687,0.68,121.46,121.42,8.89575006]
[1766763915876,0.68,121.46,121.42,19.49979565]
[1766763916087,0.68,121.46,121.42,8.89575006]
[1766763916272,0.68,121.46,121.43,8.23516498]
[1766763916993,10.43767296,121.47,121.43,0.66]
[1766763918079,10.43767296,121.47,121.44,0.66]
[1766763918434,0.68,121.52,121.47,0.46]
[1766763918591,0.68,121.52,121.47,11.06404559]
[1766763919492,0.68,121.52,121.47,10.60404559]
[1766763920072,0.68,121.52,121.47,18.83616484]
[1766763920279,0.68,121.52,121.47,19.29616484]
[1766763920772,0.68,121.52,121.47,18.83616484]
[1766763920974,0.68,121.51,121.47,8.23211925]
[1766763921699,0.68,121.49,121.43,20.58716892]
[1766763921903,0.68,121.48,121.44,8.23407687]
[1766763923694,0.68,121.47,121.43,8.23492241]
[1766763924688,0.68,121.46,121.43,8.23492241]
[1766763925274,11.28404559,121.46,121.43,8.23492241]
[1766763925503,0.68,121.46,121.42,8.23587547]
[1766763925880,0.68,121.49,121.44,11.06404559]
[1766763926081,0.68,121.51,121.47,10.60404559]
[1766763926390,0.68,121.51,121.47,11.06404559]
[1766763926570,103.46,121.52,121.47,11.06404559]
[1766763926775,104.14,121.52,121.47,11.06404559]
[1766763927176,104.14,121.52,121.48,8.2318077]
[1766763928597,104.14,121.52,121.48,18.83585329]
[1766763930600,21.04171855,121.53,121.49,0.46]
[1766763930601,10.43767296,121.53,121.49,0.46]
[1766763930805,0.68,121.54,121.5,10.60404559]
[1766763931119,114.06404559,121.56,121.48,8.2318077]
[1766763931120,10.60404559,121.52,121.48,8.2318077]
[1766763931288,0.68,121.51,121.47,8.23227347]
[1766763931611,36.08171855,121.53,121.48,8.23175644]
[1766763931794,0.68,121.52,121.48,8.23175644]
[1766763933088,0.68,121.54,121.5,10.60404559]
[1766763933607,0.68,121.54,121.51,10.60404559]
[1766763933812,0.68,121.57,121.52,10.60404559]
[1766763934108,11.11767296,121.57,121.52,10.60404559]
[1766763934277,0.68,121.56,121.52,10.60404559]
[1766763934683,0.68,121.56,121.52,18.83252582]
[1766763936604,0.68,121.56,121.51,9.51250046]
[1766763936807,10.43767296,121.57,121.51,28.80396124]
[1766763937084,10.43767296,121.57,121.53,0.46]
[1766763937891,0.68,121.56,121.51,39.86800683]
[1766763938418,0.68,121.56,121.52,10.60404559]
[1766763938597,0.68,121.56,121.52,18.83286671]
[1766763938995,0.68,121.56,121.51,0.46]
[1766763939319,0.68,121.56,121.52,10.60404559]
[1766763939686,0.68,121.56,121.52,8.68898617]
[1766763939890,0.68,121.56,121.52,19.29303176]
[1766763943687,10.43767296,121.57,121.54,11.06404559]
[1766763943882,26.24767296,121.58,121.54,0.46]
[1766763944108,26.24767296,121.58,121.54,11.06404559]
[1766763944109,0.79,121.58,121.54,11.06404559]
[1766763944307,0.79,121.58,121.53,10.60404559]
[1766763945308,0.79,121.58,121.53,18.83193194]
[1766763945812,10.70404559,121.58,121.53,8.22788635]
[1766763946017,0.77,121.58,121.53,18.83193194]
[1766763946214,0.77,121.58,121.53,19.29193194]
[1766763949120,0.67,121.56,121.53,8.22788635]
[1766763949326,10.60404559,121.56,121.52,8.22886059]
[1766763949527,0.67,121.55,121.52,8.22886059]
[1766763954624,0.67,121.55,121.51,8.2294787]
[1766763954826,0.67,121.53,121.48,35.33590889]
[1766763955003,0.67,121.53,121.48,35.79590889]
[1766763956116,0.67,121.53,121.48,29.27030018]